fUSD/lending_fUSD_20250523
["ID","MTS","AMOUNT","RATE_DAILY","PERIOD"]
[362095534,1747991446351,-474.71646086,0.00027807,4]
[362095535,1747991446360,-420.0,0.00027807,4]
[362095536,1747991446369,-420.0,0.00027807,4]
[362095537,1747991446380,-420.0,0.00027807,4]
[362095538,1747991446390,-420.0,0.00027807,4]
[362095539,1747991446399,-420.0,0.00027807,4]
[362095540,1747991446409,-420.0,0.00027807,4]
[362095541,1747991446419,-420.0,0.00027807,4]
[362095542,1747991446428,-420.0,0.00027807,4]
[362095544,1747991446437,-309.91416671,0.00027807,4]
[362095546,1747991446447,-420.0,0.00027807,4]
[362095548,1747991446457,-420.0,0.00027807,4]
[362095550,1747991446466,-420.0,0.00027807,4]
[362095552,1747991446475,-250.28727956,0.00027807,4]
[362095553,1747991446484,-420.0,0.00027807,4]
[362095554,1747991446494,-420.0,0.00027807,4]
[362095555,1747991446504,-420.0,0.00027807,4]
[362095556,1747991446513,-420.0,0.00027807,4]
[362095557,1747991446523,-1000.0,0.00027807,2]
[362095558,1747991446532,-420.0,0.00027807,4]
[362095559,1747991446541,-420.0,0.00027807,4]
[362095560,1747991446550,-420.0,0.00027807,4]
[362095561,1747991446560,-420.0,0.00027807,4]
[362095562,1747991446569,-420.0,0.00027807,4]
[362095563,1747991446578,-420.0,0.00027807,4]
[362095564,1747991446587,-420.0,0.00027807,4]
[362095566,1747991446596,-420.0,0.00027807,4]
[362095567,1747991446606,-420.0,0.00027807,4]
[362095568,1747991446615,-420.0,0.00027807,4]
[362095569,1747991446624,-420.0,0.00027807,4]
[362095570,1747991446633,-420.0,0.00027807,4]
[362095571,1747991446642,-420.0,0.00027807,4]
[362095572,1747991446653,-420.0,0.00027807,4]
[362095573,1747991446663,-420.0,0.00027807,4]
[362095574,1747991446672,-714.14,0.00027807,4]
[362095575,1747991446681,-420.0,0.00027807,4]
[362095576,1747991446689,-420.0,0.00027807,4]
[362095577,1747991446697,-1310.16,0.00027807,4]
[362095578,1747991446707,-420.0,0.00027807,4]
[362095579,1747991446716,-454.9790649,0.00027807,4]
[362095580,1747991446725,-424.65,0.00027807,4]
[362095581,1747991446734,-420.0,0.00027807,4]
[362095582,1747991446743,-420.0,0.00027807,4]
[362095583,1747991446753,-420.0,0.00027807,4]
[362095584,1747991446763,-420.0,0.00027807,4]
[362095585,1747991446772,-420.0,0.00027807,4]
[362095586,1747991446782,-420.0,0.00027807,4]
[362095587,1747991446792,-420.0,0.00027807,4]
[362095588,1747991446801,-420.0,0.00027807,4]
[362095589,1747991446811,-420.0,0.00027807,4]
[362095590,1747991446820,-420.0,0.00027807,4]
[362095591,1747991446830,-420.0,0.00027807,4]
[362095592,1747991446841,-426.35986887,0.00027807,4]
[362095593,1747991446851,-3841.74,0.00027807,4]
[362095594,1747991446862,-420.0,0.00027807,4]
[362095595,1747991446872,-475.83,0.00027807,4]
[362095596,1747991446881,-420.0,0.00027807,4]
[362095597,1747991446891,-420.0,0.00027807,4]
[362095598,1747991446899,-420.0,0.00027807,4]
[362095599,1747991446909,-824.61,0.00027807,4]
[362095600,1747991446918,-300.78548118,0.00027807,4]
[362095601,1747991446927,-420.0,0.00027807,4]
[362095602,1747991446937,-420.0,0.00027807,4]
[362095603,1747991446947,-434.2,0.00027807,4]
[362095604,1747991446957,-420.0,0.00027807,4]
[362095605,1747991446968,-562.34969941,0.00027807,4]
[362095606,1747991446977,-420.0,0.00027807,4]
[362095607,1747991446986,-225.88319417,0.00027807,4]
[362095608,1747991446995,-305.57195385,0.00027807,4]
[362095609,1747991447005,-420.0,0.00027807,4]
[362095610,1747991447014,-420.0,0.00027807,4]
[362095611,1747991447023,-420.0,0.00027807,4]
[362095612,1747991447033,-420.0,0.00027807,4]
[362095613,1747991447043,-420.0,0.00027807,4]
[362095614,1747991447053,-596.23,0.00027807,2]
[362095615,1747991447063,-420.0,0.00027807,4]
[362095616,1747991447073,-420.0,0.00027807,4]
[362095617,1747991447082,-420.0,0.00027807,4]
[362095618,1747991447091,-642.1,0.00027807,4]
[362095619,1747991447100,-202.71276947,0.00027807,4]
[362095620,1747991447110,-420.0,0.00027807,4]
[362095621,1747991447120,-541.4,0.00027807,4]
[362095622,1747991447130,-420.0,0.00027807,4]
[362095623,1747991447141,-1280.62,0.00027807,4]
[362095624,1747991447151,-420.0,0.00027807,4]
[362095625,1747991447161,-420.0,0.00027807,4]
[362095626,1747991447171,-420.0,0.00027807,4]
[362095627,1747991447181,-420.0,0.00027807,4]
[362095628,1747991447191,-420.0,0.00027807,4]
[362095629,1747991447200,-420.0,0.00027807,4]
[362095630,1747991447209,-233.74448818,0.00027807,4]
[362095631,1747991447219,-420.0,0.00027807,4]
[362095632,1747991447229,-187.658703,0.00027808,7]
[362095633,1747991447238,-187.658703,0.00027808,7]
[362095634,1747991447246,-420.0,0.00027808,4]
[362095635,1747991447256,-420.0,0.00027808,4]
[362095636,1747991447265,-420.0,0.00027808,4]
[362095637,1747991447274,-420.0,0.00027808,4]
[362095638,1747991447283,-420.0,0.00027808,4]
[362095639,1747991447293,-467.87,0.00027808,4]
[362095640,1747991447302,-781.96717609,0.00027816,2]
[362095641,1747991447312,-10752.8205951,0.00027818,3]
[362095642,1747991447321,-11968.04654846,0.00027828,2]
[362095643,1747991447330,-5672.91331221,0.00027834,2]
[362095644,1747991447341,-10752.8205951,0.00027852,3]
[362095645,1747991447350,-256.0,0.0002788,120]
[362095646,1747991447359,-600.0,0.000279,10]
[362095647,1747991447368,-10752.8205951,0.00027915,3]
[362095648,1747991447377,-10752.8205951,0.00027924,3]
[362095649,1747991447386,-10752.8205951,0.00027925,3]
[362095650,1747991447396,-32258.4617853,0.00027934,3]
[362095651,1747991447406,-10752.8205951,0.00027935,3]
[362095652,1747991447415,-420.0,0.00027943,4]
[362095653,1747991447425,-420.0,0.00027943,4]
[362095654,1747991447435,-505.18,0.00027943,4]
[362095655,1747991447444,-420.0,0.00027943,4]
[362095656,1747991447453,-420.0,0.00027943,4]
[362095657,1747991447464,-1131.62,0.00027943,4]
[362095658,1747991447473,-422.52817751,0.00027943,4]
[362095659,1747991447483,-420.0,0.00027943,4]
[362095660,1747991447492,-527.75,0.00027943,4]
[362095661,1747991447501,-6943.92,0.00027943,4]
[362095662,1747991447511,-420.0,0.00027943,4]
[362095663,1747991447520,-420.0,0.00027943,4]
[362095664,1747991447530,-420.0,0.00027943,4]
[362095665,1747991447540,-420.0,0.00027943,4]
[362095666,1747991447549,-420.0,0.00027943,4]
[362095667,1747991447558,-617.57,0.00027943,2]
[362095668,1747991447567,-1210.43,0.00027943,4]
[362095669,1747991447576,-420.0,0.00027943,4]
[362095670,1747991447585,-729.42,0.00027943,4]
[362095671,1747991447594,-420.0,0.00027943,4]
[362095672,1747991447603,-420.0,0.00027943,4]
[362095673,1747991447612,-420.0,0.00027943,4]
[362095674,1747991447621,-2438.98,0.00027943,4]
[362095675,1747991447630,-4640.96,0.00027943,4]
[362095676,1747991447639,-429.76,0.00027943,4]
[362095677,1747991447653,-2057.93,0.00027943,4]
[362095678,1747991447665,-1421.73,0.00027943,4]
[362095679,1747991447677,-420.0,0.00027943,4]
[362095680,1747991447689,-509.55,0.00027943,4]
[362095681,1747991447701,-420.0,0.00027943,4]
[362095682,1747991447710,-420.0,0.00027943,4]
[362095683,1747991447720,-838.66,0.00027943,4]
[362095684,1747991447730,-4985.69,0.00027943,4]
[362095685,1747991447741,-2018.07,0.00027943,4]
[362095686,1747991447753,-420.0,0.00027943,4]
[362095687,1747991447765,-848.67,0.00027943,4]
[362095688,1747991447776,-157.112544,0.00027944,7]
[362095689,1747991447787,-213.81127844,0.00027944,4]
[362095690,1747991447798,-394.26168318,0.00027944,4]
[362095691,1747991447809,-420.0,0.00027944,4]
[362095692,1747991447820,-420.0,0.00027944,4]
[362095693,1747991447831,-294.72755493,0.00027944,4]
[362095694,1747991447843,-420.0,0.00027944,4]
[362095695,1747991447854,-420.0,0.00027944,4]
[362095696,1747991447864,-420.0,0.00027944,4]
[362095697,1747991447877,-420.0,0.00027944,4]
[362095698,1747991447888,-420.0,0.00027944,4]
[362095699,1747991447898,-420.0,0.00027944,4]
[362095700,1747991447908,-420.0,0.00027944,4]
[362095701,1747991447918,-572.7,0.00027944,4]
[362095702,1747991447928,-540.89940569,0.00027944,4]
[362095703,1747991447940,-420.0,0.00027944,4]
[362095704,1747991447950,-420.0,0.00027944,4]
[362095705,1747991447961,-164.0784779,0.00027944,4]
[362095706,1747991447972,-420.0,0.00027944,4]
[362095707,1747991447984,-484.84212359,0.00027944,4]
[362095708,1747991447995,-304.88275167,0.00027944,4]
[362095709,1747991448007,-420.0,0.00027944,4]
[362095710,1747991448018,-420.0,0.00027944,4]
[362095711,1747991448029,-420.0,0.00027944,4]
[362095712,1747991448041,-420.0,0.00027944,4]
[362095713,1747991448052,-420.0,0.00027944,4]
[362095714,1747991448065,-420.0,0.00027944,4]
[362095715,1747991448077,-420.0,0.00027944,4]
[362095716,1747991448087,-420.0,0.00027944,4]
[362095717,1747991448098,-420.0,0.00027944,4]
[362095718,1747991448109,-233.95371574,0.00027944,4]
[362095719,1747991448121,-420.0,0.00027944,4]
[362095720,1747991448134,-459.18834055,0.00027944,4]
[362095721,1747991448149,-420.0,0.00027944,4]
[362095722,1747991448160,-420.0,0.00027944,4]
[362095723,1747991448171,-420.0,0.00027944,4]
[362095724,1747991448183,-1000.0,0.00027944,2]
[362095725,1747991448193,-420.0,0.00027944,4]
[362095726,1747991448205,-420.0,0.00027944,4]
[362095727,1747991448217,-420.0,0.00027944,4]
[362095728,1747991448227,-420.0,0.00027944,4]
[362095729,1747991448238,-420.0,0.00027944,4]
[362095730,1747991448249,-420.0,0.00027944,4]
[362095731,1747991448260,-420.0,0.00027944,4]
[362095732,1747991448271,-420.0,0.00027944,4]
[362095733,1747991448284,-464.32377773,0.00027944,4]
[362095734,1747991448294,-218.20745103,0.00027944,4]
[362095735,1747991448306,-420.0,0.00027944,4]
[362095736,1747991448316,-420.0,0.00027944,4]
[362095737,1747991448327,-420.0,0.00027944,4]
[362095738,1747991448338,-245.34943278,0.00027944,4]
[362095739,1747991448349,-420.0,0.00027944,4]
[362095740,1747991448359,-714.14,0.00027944,4]
[362095741,1747991448369,-420.0,0.00027944,4]
[362095742,1747991448379,-420.0,0.00027944,4]
[362095743,1747991448390,-1310.16,0.00027944,4]
[362095744,1747991448401,-420.0,0.00027944,4]
[362095745,1747991448412,-424.65,0.00027944,4]
[362095746,1747991448423,-420.0,0.00027944,4]
[362095747,1747991448436,-420.0,0.00027944,4]
[362095748,1747991448448,-420.0,0.00027944,4]
[362095749,1747991448459,-420.0,0.00027944,4]
[362095750,1747991448469,-420.0,0.00027944,4]
[362095751,1747991448479,-420.0,0.00027944,4]
[362095752,1747991448489,-420.0,0.00027944,4]
[362095753,1747991448499,-420.0,0.00027944,4]
[362095754,1747991448510,-420.0,0.00027944,4]
[362095755,1747991448520,-420.0,0.00027944,4]
[362095756,1747991448531,-420.0,0.00027944,4]
[362095757,1747991448543,-3841.74,0.00027944,4]
[362095758,1747991448553,-420.0,0.00027944,4]
[362095759,1747991448567,-475.83,0.00027944,4]
[362095760,1747991448578,-420.0,0.00027944,4]
[362095761,1747991448588,-420.0,0.00027944,4]
[362095762,1747991448601,-420.0,0.00027944,4]
[362095763,1747991448611,-824.61,0.00027944,4]
[362095764,1747991448621,-420.0,0.00027944,4]
[362095765,1747991448631,-420.0,0.00027944,4]
[362095766,1747991448641,-434.2,0.00027944,4]
[362095767,1747991448651,-420.0,0.00027944,4]
[362095768,1747991448662,-420.0,0.00027944,4]
[362095769,1747991448672,-420.0,0.00027944,4]
[362095770,1747991448683,-420.0,0.00027944,4]
[362095771,1747991448694,-420.0,0.00027944,4]
[362095772,1747991448704,-420.0,0.00027944,4]
[362095773,1747991448714,-420.0,0.00027944,4]
[362095774,1747991448725,-596.23,0.00027944,2]
[362095775,1747991448736,-420.0,0.00027944,4]
[362095776,1747991448746,-420.0,0.00027944,4]
[362095777,1747991448756,-420.0,0.00027944,4]
[362095778,1747991448768,-642.1,0.00027944,4]
[362095779,1747991448778,-420.0,0.00027944,4]
[362095780,1747991448789,-541.4,0.00027944,4]
[362095781,1747991448799,-511.46,0.00027944,2]
[362095782,1747991448810,-420.0,0.00027944,4]
[362095783,1747991448820,-1280.62,0.00027944,4]
[362095784,1747991448831,-420.0,0.00027944,4]
[362095785,1747991448843,-420.0,0.00027944,4]
[362095786,1747991448856,-420.0,0.00027944,4]
[362095787,1747991448867,-420.0,0.00027944,4]
[362095788,1747991448879,-420.0,0.00027944,4]
[362095789,1747991448889,-420.0,0.00027944,4]
[362095790,1747991448903,-420.0,0.00027944,4]
[362095791,1747991448915,-187.658703,0.00027945,7]
[362095792,1747991448925,-187.658703,0.00027945,7]
[362095793,1747991448936,-420.0,0.00027945,4]
[362095794,1747991448947,-420.0,0.00027945,4]
[362095795,1747991448958,-181.24823522,0.00027945,4]
[362095796,1747991448968,-420.0,0.00027945,4]
[362095797,1747991448979,-420.0,0.00027945,4]
[362095798,1747991448989,-467.87,0.00027945,4]
[362095799,1747991449000,-502.00374054,0.00027973,5]
[362095800,1747991449010,-500.0,0.00027973,5]
[362095801,1747991449021,-501.46856912,0.00027973,5]
[362095802,1747991449031,-10752.8205951,0.00027978,3]
[362095803,1747991449042,-151.0,0.00027988,2]
[362095804,1747991449052,-156.0,0.00027988,2]
[362095805,1747991449063,-151.0,0.00027988,2]
[362095806,1747991449074,-151.0,0.00027988,2]
[362095807,1747991449084,-668.65185757,0.00027988,2]
[362095808,1747991449095,-668.65185757,0.00027988,2]
[362095809,1747991449106,-1199.20597015,0.00027988,2]
[362095810,1747991449117,-207.4,0.00027988,2]
[362095811,1747991449128,-10752.8205951,0.0002799,3]
[362095812,1747991449142,-187.658703,0.00027999,7]
[362095813,1747991449152,-187.658703,0.00027999,7]
[362095814,1747991449163,-295.89911561,0.00028,2]
[362095815,1747991449175,-1000.0,0.00028,2]
[362095816,1747991449185,-151.0,0.00028,2]
[362095817,1747991449196,-229.84937674,0.00028024,2]
[362095818,1747991449207,-10752.8205951,0.00028052,3]
[362095819,1747991449218,-21505.6411902,0.00028061,3]
[362095820,1747991449229,-11827.1481595,0.00028061,3]
[362095821,1747991449240,-10752.8205951,0.00028062,3]
[362095822,1747991449251,-11827.1481595,0.00028062,3]
[362095823,1747991449262,-5672.91331219,0.00028063,2]
[362095824,1747991449272,-178.72883596,0.00028071,2]
[362095825,1747991449283,-200.0,0.00028071,2]
[362095826,1747991449294,-32258.4617853,0.00028071,3]
[362095827,1747991449305,-35481.4444786,0.00028071,3]
[362095828,1747991449316,-10752.8205951,0.00028072,3]
[362095829,1747991449327,-11827.1481595,0.00028076,3]
[362095830,1747991449338,-420.0,0.0002808,4]
[362095831,1747991449348,-420.0,0.0002808,4]
[362095832,1747991449360,-505.18,0.0002808,4]
[362095833,1747991449371,-420.0,0.0002808,4]
[362095834,1747991449382,-420.0,0.0002808,4]
[362095835,1747991449393,-1131.62,0.0002808,4]
[362095836,1747991449403,-420.0,0.0002808,4]
[362095837,1747991449413,-527.75,0.0002808,4]
[362095838,1747991449424,-6943.92,0.0002808,4]
[362095839,1747991449435,-420.0,0.0002808,4]
[362095840,1747991449446,-420.0,0.0002808,4]
[362095841,1747991449456,-420.0,0.0002808,4]
[362095842,1747991449467,-420.0,0.0002808,4]
[362095843,1747991449477,-420.0,0.0002808,4]
[362095844,1747991449488,-617.57,0.0002808,2]
[362095845,1747991449498,-1210.43,0.0002808,4]
[362095846,1747991449509,-420.0,0.0002808,4]
[362095847,1747991449519,-729.42,0.0002808,4]
[362095848,1747991449529,-420.0,0.0002808,4]
[362095849,1747991449539,-420.0,0.0002808,4]
[362095850,1747991449550,-420.0,0.0002808,4]
[362095851,1747991449561,-2438.98,0.0002808,4]
[362095852,1747991449572,-4640.96,0.0002808,4]
[362095853,1747991449583,-429.76,0.0002808,4]
[362095854,1747991449593,-2057.93,0.0002808,4]
[362095855,1747991449604,-1421.73,0.0002808,4]
[362095856,1747991449615,-199.4986239,0.0002808,4]
[362095857,1747991449627,-509.55,0.0002808,4]
[362095858,1747991449638,-420.0,0.0002808,4]
[362095859,1747991449648,-420.0,0.0002808,4]
[362095860,1747991449659,-838.66,0.0002808,4]
[362095861,1747991449670,-4985.69,0.0002808,4]
[362095862,1747991449681,-2018.07,0.0002808,4]
[362095863,1747991449691,-356.28387759,0.0002808,4]
[362095864,1747991449702,-848.67,0.0002808,4]
[362095865,1747991449713,-434.91256542,0.00028081,4]
[362095866,1747991449723,-420.0,0.00028081,4]
[362095867,1747991449733,-420.0,0.00028081,4]
[362095868,1747991449744,-420.0,0.00028081,4]
[362095869,1747991449754,-420.0,0.00028081,4]
[362095870,1747991449764,-420.0,0.00028081,4]
[362095871,1747991449774,-420.0,0.00028081,4]
[362095872,1747991449784,-420.0,0.00028081,4]
[362095873,1747991449794,-420.0,0.00028081,4]
[362095874,1747991449804,-572.7,0.00028081,4]
[362095875,1747991449814,-420.0,0.00028081,4]
[362095876,1747991449824,-506.22885188,0.00028081,4]
[362095877,1747991449834,-418.7282173,0.00028081,4]
[362095878,1747991449843,-420.0,0.00028081,4]
[362095879,1747991449853,-420.0,0.00028081,4]
[362095880,1747991449864,-316.61011103,0.00028081,4]
[362095881,1747991449875,-420.0,0.00028081,4]
[362095882,1747991449884,-420.0,0.00028081,4]
[362095883,1747991449895,-420.0,0.00028081,4]
[362095884,1747991449905,-420.0,0.00028081,4]
[362095885,1747991449916,-420.0,0.00028081,4]
[362095886,1747991449926,-420.0,0.00028081,4]
[362095887,1747991449937,-420.0,0.00028081,4]
[362095888,1747991449948,-420.0,0.00028081,4]
[362095889,1747991449960,-420.0,0.00028081,4]
[362095890,1747991449970,-420.0,0.00028081,4]
[362095891,1747991449980,-1000.0,0.00028081,2]
[362095892,1747991449990,-420.0,0.00028081,4]
[362095893,1747991450000,-420.0,0.00028081,4]
[362095894,1747991450011,-420.0,0.00028081,4]
[362095895,1747991450021,-420.0,0.00028081,4]
[362095896,1747991450031,-420.0,0.00028081,4]
[362095897,1747991450041,-420.0,0.00028081,4]
[362095898,1747991450051,-420.0,0.00028081,4]
[362095899,1747991450061,-256.72249185,0.00028081,4]
[362095900,1747991450072,-420.0,0.00028081,4]
[362095901,1747991450082,-420.0,0.00028081,4]
[362095902,1747991450092,-420.0,0.00028081,4]
[362095903,1747991450102,-420.0,0.00028081,4]
[362095904,1747991450113,-714.14,0.00028081,4]
[362095905,1747991450123,-420.0,0.00028081,4]
[362095906,1747991450133,-420.0,0.00028081,4]
[362095907,1747991450146,-1310.16,0.00028081,4]
[362095908,1747991450156,-420.0,0.00028081,4]
[362095909,1747991450167,-424.65,0.00028081,4]
[362095910,1747991450177,-420.0,0.00028081,4]
[362095911,1747991450187,-420.0,0.00028081,4]
[362095912,1747991450197,-420.0,0.00028081,4]
[362095913,1747991450207,-420.0,0.00028081,4]
[362095914,1747991450219,-420.0,0.00028081,4]
[362095915,1747991450231,-420.0,0.00028081,4]
[362095916,1747991450241,-420.0,0.00028081,4]
[362095917,1747991450252,-420.0,0.00028081,4]
[362095918,1747991450262,-420.0,0.00028081,4]
[362095919,1747991450272,-420.0,0.00028081,4]
[362095920,1747991450282,-420.0,0.00028081,4]
[362095921,1747991450293,-3841.74,0.00028081,4]
[362095922,1747991450304,-420.0,0.00028081,4]
[362095923,1747991450315,-475.83,0.00028081,4]
[362095924,1747991450325,-420.0,0.00028081,4]
[362095925,1747991450335,-420.0,0.00028081,4]
[362095926,1747991450346,-420.0,0.00028081,4]
[362095927,1747991450357,-824.61,0.00028081,4]
[362095928,1747991450368,-420.0,0.00028081,4]
[362095929,1747991450379,-420.0,0.00028081,4]
[362095930,1747991450388,-434.2,0.00028081,4]
[362095931,1747991450399,-420.0,0.00028081,4]
[362095932,1747991450409,-420.0,0.00028081,4]
[362095933,1747991450420,-420.0,0.00028081,4]
[362095934,1747991450430,-420.0,0.00028081,4]
[362095935,1747991450441,-402.48758734,0.00028081,4]
[362095936,1747991450453,-420.0,0.00028081,4]
[362095937,1747991450463,-420.0,0.00028081,4]
[362095938,1747991450474,-596.23,0.00028081,2]
[362095939,1747991450484,-420.0,0.00028081,4]
[362095940,1747991450494,-420.0,0.00028081,4]
[362095941,1747991450505,-193.28646411,0.00028081,4]
[362095942,1747991450515,-642.1,0.00028081,4]
[362095943,1747991450524,-58.57784525,0.00028081,4]
[362095944,1747991450543,-361.42215475,0.00028081,4]
[362095945,1747991450553,-541.4,0.00028081,4]
[362095946,1747991450563,-53.67784521,0.00028081,4]
[362095947,1747991450579,-366.32215479,0.00028081,4]
[362095948,1747991450890,-272.28554329,0.00028081,4]
[362095949,1747991450916,-1008.33445671,0.00028081,4]
[362095950,1747991450931,-329.28108729,0.00028081,4]
[362095951,1747991450943,-90.71891271,0.00028081,4]
[362095952,1747991450952,-319.58283112,0.00028081,4]
[362095953,1747991450966,-100.41716888,0.00028081,4]
[362095954,1747991450976,-420.0,0.00028081,4]
[362095955,1747991450985,-420.0,0.00028081,4]
[362095956,1747991450994,-420.0,0.00028081,4]
[362095957,1747991451003,-420.0,0.00028081,4]
[362095958,1747991451013,-420.0,0.00028081,4]
[362095959,1747991451022,-299.477129,0.00028082,7]
[362095960,1747991451031,-412.140035,0.00028082,4]
[362095961,1747991451040,-420.0,0.00028082,4]
[362095962,1747991451050,-283.07582381,0.00028082,4]
[362095963,1747991451059,-420.0,0.00028082,4]
[362095964,1747991451069,-467.87,0.00028082,4]
[362095965,1747991451078,-7884.98880498,0.00028086,2]
[362095966,1747991451125,-624.94584388,0.00028086,2]
[362095967,1747991451138,-3458.1118996,0.00028086,2]
[362095968,1747991451149,-165.08,0.00028124,2]
[362095969,1747991451159,-151.0,0.00028136,7]
[362095970,1747991451167,-166.278115,0.00028136,7]
[362095971,1747991451177,-187.658703,0.00028136,7]
[362095972,1747991451186,-187.658703,0.00028136,7]
[362095973,1747991451195,-229.84937673,0.0002814,2]
[362095974,1747991451204,-454.36320267,0.00028173,5]
[362095975,1747991451215,-48.81098841,0.00028173,5]
[362095976,1747991451225,-500.40744396,0.00028173,5]
[362095977,1747991451234,-500.0,0.00028173,5]
[362095978,1747991451243,-283.28156763,0.00028173,5]
[362095979,1747991451255,-216.71843237,0.00028173,5]
[362095980,1747991451264,-10752.8205951,0.00028174,3]
[362095981,1747991451273,-11827.1481595,0.00028174,3]
[362095982,1747991451283,-4835.02843914,0.00028178,3]
[362095983,1747991451294,-716.61264631,0.00028178,3]
[362095984,1747991451306,-1170.8894453,0.00028178,3]
[362095985,1747991451317,-898.98530303,0.00028178,3]
[362095986,1747991451330,-1989.23937541,0.00028178,3]
[362095987,1747991451343,-460.90077994,0.00028178,3]
[362095989,1747991491140,-420.0,0.0002767,4]
[362095990,1747991491168,-477.23,0.0002767,4]
[362095991,1747991491191,-420.0,0.00027806,4]
[362095992,1747991491216,-420.0,0.00027806,4]
[362095993,1747991491241,-285.06534992,0.00027806,4]
[362095994,1747991491266,-442.04,0.00027806,4]
[362095995,1747991491290,-420.0,0.00027806,4]
[362095996,1747991491318,-365.16494792,0.00027806,4]
[362095997,1747991491342,-420.0,0.00027806,4]
[362095998,1747991491365,-420.0,0.00027806,4]
[362095999,1747991491388,-420.0,0.00027806,4]
[362096000,1747991491412,-420.0,0.00027806,4]
[362096001,1747991491437,-420.0,0.00027806,4]
[362096002,1747991491460,-3201.45,0.00027806,4]
[362096003,1747991491484,-420.0,0.00027806,4]
[362096004,1747991491507,-420.0,0.00027806,4]
[362096005,1747991491530,-420.0,0.00027806,4]
[362096006,1747991491554,-420.0,0.00027806,4]
[362096007,1747991491576,-990.16,0.00027806,4]
[362096008,1747991491599,-420.0,0.00027806,4]
[362096009,1747991491625,-420.0,0.00027806,4]
[362096010,1747991491646,-420.0,0.00027807,4]
[362096011,1747991491670,-420.0,0.00027943,4]
[362096012,1747991491691,-420.0,0.00027943,4]
[362096013,1747991491714,-442.04,0.00027943,4]
[362096014,1747991491736,-420.0,0.00027943,4]
[362096015,1747991491758,-420.0,0.00027943,4]
[362096016,1747991491780,-420.0,0.00027943,4]
[362096017,1747991491802,-420.0,0.00027943,4]
[362096018,1747991491825,-420.0,0.00027943,4]
[362096019,1747991491847,-420.0,0.00027943,4]
[362096020,1747991491869,-3201.45,0.00027943,4]
[362096021,1747991491891,-420.0,0.00027943,4]
[362096022,1747991491913,-420.0,0.00027943,4]
[362096023,1747991491935,-420.0,0.00027943,4]
[362096024,1747991491956,-420.0,0.00027943,4]
[362096025,1747991491979,-990.16,0.00027943,4]
[362096026,1747991492001,-420.0,0.00027943,4]
[362096027,1747991492023,-451.4516237,0.00027943,4]
[362096028,1747991492045,-420.0,0.00027944,4]
[362096029,1747991492067,-420.0,0.0002808,4]
[362096030,1747991492090,-420.0,0.0002808,4]
[362096031,1747991492114,-442.04,0.0002808,4]
[362096032,1747991492138,-420.0,0.0002808,4]
[362096033,1747991492163,-420.0,0.0002808,4]
[362096034,1747991492184,-420.0,0.0002808,4]
[362096035,1747991492207,-261.80069333,0.0002808,4]
[362096036,1747991492231,-420.0,0.0002808,4]
[362096037,1747991492304,-420.0,0.0002808,4]
[362096038,1747991492329,-3201.45,0.0002808,4]
[362096039,1747991492352,-420.0,0.0002808,4]
[362096040,1747991492374,-420.0,0.0002808,4]